Cogmind - Beta 12 X3 @@@ ROGUE MODE // 2022.09.14 @ 21:14:19 Player: albenzo Result: Destroyed by G-34 Mercenary with Small Laser Performance ------------- Evolutions (0) 0 Regions Visited (4) 800 Robots Destroyed (23) 115 Value Destroyed (618) 618 Prototype IDs (27) 540 Alien Tech Used (0) 0 Bonus (300) 300 TOTAL SCORE: 2373 Bonus ------- Aligned with FarCom 300 Cogmind --------- Core Integrity 0/250 Matter 212/300 Energy 275/275 System Corruption 1% Temperature Cool (62) Movement Rolling (115) Ox1 Location -9/Mines Parts ------- > --- POWER (1) -------- Deuterium Engine > --- PROPULSION (2) --- Compact Wheel Compact Wheel > --- UTILITY (2) ------ High-capacity Storage Unit Medium Armor Plating > --- WEAPON (2) ------- Heavy Assault Rifle Heavy Assault Rifle > --- INVENTORY (20) --- Wheel Wheel Improved Heat Sink Small Storage Unit Medium Storage Unit Signal Interpreter Improved Terrain Scanner Seismic Detector 0b10 Alert Chip Targeting Computer ECM Suite Medium Armor Plating Medium Armor Plating System Shield Medium Laser Particle Gun Shotgun Shotgun Shock Bomb Launcher Peak State ------------ > --- POWER ------------ Deuterium Engine > --- PROPULSION ------- Compact Wheel Compact Wheel > --- UTILITY ---------- High-capacity Storage Unit Seismic Detector > --- WEAPON ----------- Heavy Assault Rifle Shock Bomb Launcher > --- INVENTORY -------- Wheel Wheel Compact Wheel Improved Heat Sink Small Storage Unit Medium Storage Unit Signal Interpreter Improved Terrain Scanner 0b10 Alert Chip Targeting Computer ECM Suite Medium Armor Plating Medium Armor Plating Medium Armor Plating System Shield Medium Laser Particle Gun Heavy Assault Rifle Shotgun Shotgun [Rating: 15] Favorites ----------- Power Ion Engine Engine Ion Engine Propulsion Light Treads Treads Light Treads Wheel Compact Wheel Utility Seismic Detector Device Seismic Detector Storage High-capacity Storage Unit Protection Medium Armor Plating Weapon Shotgun Ballistic Gun Shotgun Launcher Shock Bomb Launcher Build | -11 -10 -10 -10 -9 ------- Run | Scr Mat Min Exi Min Slots Evolved . | . . . . . Power . | . . . . . Propulsion . | . . . . . Utility . | . . . . . Weapon . | . . . . . Parts Attached 25 | 7 8 6 . 4 Power 7 | 1 3 3 . . Engine 7 | 1 3 3 . . Core . | . . . . . Reactor . | . . . . . Propulsion 5 | 2 2 . . 1 Treads 2 | 2 . . . . Leg . | . . . . . Wheel 3 | . 2 . . 1 Hover . | . . . . . Flight . | . . . . . Utility 5 | 2 1 1 . 1 Device 2 | 1 . 1 . . Storage 2 | 1 1 . . . Processor . | . . . . . Hackware . | . . . . . Protection 1 | . . . . 1 Artifact . | . . . . . Weapon 8 | 2 2 2 . 2 Energy Gun . | . . . . . Energy Cannon . | . . . . . Ballistic Gun 7 | 2 2 2 . 1 Ballistic Cannon . | . . . . . Launcher 1 | . . . . 1 Special Weapon . | . . . . . Impact Weapon . | . . . . . Slashing Weapon . | . . . . . Piercing Weapon . | . . . . . Special Melee Weapon . | . . . . . Unidentified Prototypes . | . . . . . Parts Lost 3 | . 1 1 . 1 Power 2 | . 1 1 . . Propulsion 1 | . . . . 1 Utility . | . . . . . Weapon . | . . . . . Highest Loss Streak 1 | . 1 1 . 1 To Critical Strikes . | . . . . . Average Slot Usage (%) 99 | . 99 100 100 100 Engine 13 | . 13 14 14 14 Treads 13 | . 22 . . . Wheel 14 | . 5 28 28 28 Device 13 | . 14 14 14 12 Storage 14 | . 14 14 14 14 Ballistic Gun 27 | . 28 28 28 26 Naked Turns . | . . . . . Heaviest Build 59 | 14 52 56 56 59 Greatest Support 40 | 40 40 32 32 32 Greatest Overweight (x) 3 | . 3 1 1 1 Average Overweight (x) . | . . 1 1 1 Largest Inventory Capacity 20 | 8 20 20 20 20 Average Capacity 14 | 7 12 20 20 20 Most Carried 20 | 7 20 20 20 20 Average Carried 13 | 5 10 19 19 19 Final Capacity 20 | 8 20 20 20 20 Final Carried 20 | 7 20 20 20 19 Class Distribution -------------------- 96% | Mutant 3% | Scavenger-Mutant Dominant Class ---------------- Mutant | -10/Materials Mutant | -10/Mines Mutant | -10/Exiles Mutant | -9/Mines Resources | -11 -10 -10 -10 -9 ----------- Run | Scr Mat Min Exi Min Matter Collected 738 | 302 286 150 . . Remotely . | . . . . . Salvage Created 855 | 58 382 306 . 109 Parts 55 | 11 17 18 . 9 Haulers Intercepted . | . . . . . Recyclers Shooed . | . . . . . Parts Field Recycled . | . . . . . Retrieved Matter . | . . . . . Parts Self-Destructed . | . . . . . Prevented . | . . . . . Kills | -11 -10 -10 -10 -9 ------- Run | Scr Mat Min Exi Min Combat Hostiles Destroyed 15 | . 9 4 . 2 Guns 14 | . 9 4 . 1 AOE 1 | . . . . 1 Classes Destroyed 6 | 1 2 2 . 1 Worker 1 | . 1 . . . Builder 1 | . . . . 1 Tunneler 5 | 4 . 1 . . Recycler 1 | . . 1 . . Grunt 13 | . 9 2 . 2 Sentry 2 | . . 2 . . Best Kill Streak 4 | 1 4 3 . 2 Combat Bots Only 3 | . 3 2 . 1 Max Kills in Single Turn 1 | 1 1 1 . 1 Gunslinging . | . . . . . Exploded 1 | . . . . 1 Melee . | . . . . . Uniques/NPCs Destroyed . | . . . . . Combat | -11 -10 -10 -10 -9 -------- Run | Scr Mat Min Exi Min Damage Taken 1155 | . 525 230 . 400 Core 254 | . 110 44 . 100 Absorbed by Shields . | . . . . . Core Remaining (%) 100 | 100 . . . . Volleys Fired 75 | 8 42 12 . 13 Largest 2 | 2 2 2 . 2 Hottest 46 | 40 46 46 . 46 Shots Fired 139 | 16 84 24 . 15 Gun 135 | 16 84 24 . 11 Cannon . | . . . . . Launcher 4 | . . . . 4 Special . | . . . . . Kinetic 135 | 16 84 24 . 11 Thermal . | . . . . . Explosive . | . . . . . Electromagnetic 4 | . . . . 4 Robot Hit Streak 14 | 4 14 7 . 5 Robot Miss Streak 4 | 1 4 2 . 3 Penetration Max . | . . . . . Secondary Targets . | . . . . . Shots Hit Robots 101 | 9 64 19 . 9 Core Hits 40 | 5 22 9 . 4 Critical Kills . | . . . . . Critical Parts Destroyed . | . . . . . Critical Strikes . | . . . . . Melee Attacks . | . . . . . Impact . | . . . . . Slashing . | . . . . . Piercing . | . . . . . Sneak Attacks . | . . . . . Combat Hostiles . | . . . . . Follow-up Attacks . | . . . . . Damage Inflicted 1417 | 108 758 306 . 245 Guns 1309 | 108 758 306 . 137 Cannons . | . . . . . Explosions 108 | . . . . 108 Melee . | . . . . . Ramming . | . . . . . Kinetic 1309 | 108 758 306 . 137 Thermal . | . . . . . Explosive . | . . . . . Electromagnetic 108 | . . . . 108 Impact . | . . . . . Slashing . | . . . . . Piercing . | . . . . . Highest Corruption 1 | . . . . 1 Average Corruption 1 | . . . . 1 Corruption Purged . | . . . . . Corruption Blocked . | . . . . . Overload Shots . | . . . . . Overflow Damage 5 | . . . . 5 Projectiles . | . . . . . Explosions 5 | . . . . 5 Melee . | . . . . . Knockbacks . | . . . . . Impact . | . . . . . Kinetic . | . . . . . Secondary . | . . . . . Self-Inflicted Damage 45 | . . . . 45 Shots 2 | . . . . 2 Rammed . | . . . . . Targets Rammed . | . . . . . Kicked . | . . . . . Crushed . | . . . . . Highest Temperature 58 | . 9 6 . 58 Average Temperature 13 | . 5 3 . 30 Received Heat Transfer 585 | . 288 81 . 216 Siege Activations . | . . . . . Robots Corrupted . | . . . . . Combat Hostiles . | . . . . . Parts Fried . | . . . . . Impact Corruptions . | . . . . . Robots Melted . | . . . . . Combat Hostiles . | . . . . . Parts Melted . | . . . . . Heat Transferred . | . . . . . Parts Sabotaged . | . . . . . Parts Stolen . | . . . . . Parts Stripped . | . . . . . Power Chain Reactions . | . . . . . Missiles Intercepted . | . . . . . Alert | -11 -10 -10 -10 -9 ------- Run | Scr Mat Min Exi Min Peak Influence 156 | 20 156 137 . 45 Initial 13 | . 13 2 . . Average 31 | 6 34 41 . 6 Maximum Alert Level . | . . . . . Low Security (%) 100 | 100 100 100 . 100 Level 1 . | . . . . . Level 2 . | . . . . . Level 3 . | . . . . . Level 4 . | . . . . . Level 5 . | . . . . . High Security . | . . . . . Max Security . | . . . . . Squads Dispatched 3 | . 2 1 . . Investigation 3 | . 2 1 . . Extermination . | . . . . . Reinforcement . | . . . . . Assault . | . . . . . Garrison . | . . . . . Intercept . | . . . . . Searches Triggered . | . . . . . Construction Impeded . | . . . . . Haulers Reinforced . | . . . . . Active Scanning Responses . | . . . . . Cargo Convoy Interrupts . | . . . . . Stealth | -11 -10 -10 -10 -9 --------- Run | Scr Mat Min Exi Min Distress Signals 4 | . 4 . . . Communications Jammed . | . . . . . Distress Signals . | . . . . . Times Spotted 31 | . 22 5 . 4 Peak Tracking Total 5 | . 5 2 . 4 Tactical Retreats 1 | . . 1 . . Traps | -11 -10 -10 -10 -9 ------- Run | Scr Mat Min Exi Min Traps Triggered 2 | . 2 . . . Indirectly . | . . . . . Trap Hack Attempts . | . . . . . Triggered . | . . . . . Disarmed . | . . . . . Reprogrammed . | . . . . . Reused . | . . . . . Traps Extracted . | . . . . . Installed . | . . . . . Triggered . | . . . . . Machines | -11 -10 -10 -10 -9 ---------- Run | Scr Mat Min Exi Min Machines Disabled . | . . . . . Max in Single Turn . | . . . . . Machines Sabotaged . | . . . . . Overloaded Fab Kills . | . . . . . Hacking | -11 -10 -10 -10 -9 --------- Run | Scr Mat Min Exi Min Machines Accessed 10 | . 8 1 1 . Terminals 6 | . 6 . . . Fabricators . | . . . . . Repair Stations 1 | . 1 . . . Recycling Units 1 | . 1 . . . Scanalyzers . | . . . . . Garrison Access . | . . . . . Total Hacks 31 | . 29 1 1 . Successful 17 | . 15 1 1 . Failed 14 | . 14 . . . Catastrophic . | . . . . . Database Lockouts . | . . . . . Manual 19 | . 18 . 1 . Terminals 22 | . 22 . . . Fabricators . | . . . . . Repair Stations 2 | . 2 . . . Recycling Units 5 | . 5 . . . Scanalyzers . | . . . . . Garrison Access . | . . . . . Terminal Hacks 12 | . 10 1 1 . Prototype ID Bank 2 | . 2 . . . Open Door 1 | . . 1 . . Branch Access Points 1 | . 1 . . . Terminal Index 1 | . 1 . . . Alert Level 2 | . 2 . . . Locate Traps 1 | . 1 . . . Hauler Manifests 1 | . 1 . . . Registered Components 1 | . 1 . . . Zone Layout 1 | . 1 . . . EX-Prototype ID Bank 1 | . . . 1 . Fabricator Hacks . | . . . . . Repair Station Hacks . | . . . . . Recycling Unit Hacks 1 | . 1 . . . Retrieve Components 1 | . 1 . . . Scanalyzer . | . . . . . Garrison Access Hacks . | . . . . . Unauthorized Hacks 4 | . 4 . . . Terminals 2 | . 2 . . . Botnet 1 | . 1 . . . Operators 1 | . 1 . . . Fabricators . | . . . . . Repair Stations . | . . . . . Recycling Units 2 | . 2 . . . Reject 1 | . 1 . . . Mask 1 | . 1 . . . Scanalyzers . | . . . . . Garrison Access . | . . . . . Data Cores Recovered . | . . . . . Used . | . . . . . Hacking Detections 7 | . 7 . . . Full Trace Events . | . . . . . Feedback Events . | . . . . . Feedback Blocked . | . . . . . Robot Schematics Acquired . | . . . . . Robots Built . | . . . . . Authchips . | . . . . . Time . | . . . . . Total Robot Build Rating . | . . . . . Part Schematics Acquired . | . . . . . Parts Built . | . . . . . Authchips . | . . . . . Time . | . . . . . Total Part Build Rating . | . . . . . Parts Repaired . | . . . . . Time . | . . . . . Parts Recycled . | . . . . . Recycled Matter . | . . . . . Retrieved Matter . | . . . . . Retrieved Components 7 | . 7 . . . Parts Scanalyzed . | . . . . . Part Schematics Acquired . | . . . . . Parts Damaged . | . . . . . Bothacking | -11 -10 -10 -10 -9 ------------ Run | Scr Mat Min Exi Min Used RIF Installer . | . . . . . Robots Hacked . | . . . . . Non-combat . | . . . . . Combat . | . . . . . Robot Hacks Applied . | . . . . . Relay Couplers Released . | . . . . . Fabnet Peak Effective % . | . . . . . Robots Rewired . | . . . . . Allies Hacked . | . . . . . Hacks Repelled . | . . . . . Allies | -11 -10 -10 -10 -9 -------- Run | Scr Mat Min Exi Min Total Allies 2 | . . . . 2 Largest Group 2 | . . . . 2 Highest-Rated Group 43 | . . . . 43 Highest-Rated Ally 31 | . . . . 31 Total Orders . | . . . . . Ally Attacks 8 | . . . . 8 Total Damage 103 | . . . . 103 Kills . | . . . . . Allies Corrupted . | . . . . . Allies Melted . | . . . . . Intel | -11 -10 -10 -10 -9 ------- Run | Scr Mat Min Exi Min Robot Analysis Total . | . . . . . Derelict Logs Recovered 1 | . . 1 . . Drone Launches . | . . . . . Drone Recoveries . | . . . . . Exploration | -11 -10 -10 -10 -9 ------------- Run | Scr Mat Min Exi Min Turns Passed 2467 | 235 1385 475 278 94 Spaces Moved 1489 | 123 731 353 241 41 Core 4 | 4 . . . . Treads 628 | 119 509 . . . Legs . | . . . . . Wheels 857 | . 222 353 241 41 Hover . | . . . . . Flight . | . . . . . Fastest Speed 50 | 50 115 115 115 115 Average Speed 137 | 156 154 115 115 115 Slowest Speed 240 | 160 240 115 115 115 Overloaded Moves . | . . . . . Propulsion Burnouts . | . . . . . Robots Hopped . | . . . . . Cave-ins Triggered . | . . . . . Exploration Rate (%) 46 | 7 81 62 62 19 Regions Visited 4 Branch Regions 3 Pre-discovered Areas . | . . . . . Known Exits Taken 1 | . 1 . . . Unknown Exits Taken 3 | 1 . 1 1 . Scrap Searched . | . . . . . Spaces Dug . | . . . . . Terrain Destroyed . | . . . . . Melee . | . . . . . Projectile . | . . . . . AOE . | . . . . . Terrain Rammed . | . . . . . Walls Destroyed . | . . . . . Machines Disabled . | . . . . . Actions | -11 -10 -10 -10 -9 --------- Run | Scr Mat Min Exi Min Total 1785 | 148 920 403 242 72 Wait 121 | 3 83 21 . 14 Move 1485 | 122 730 352 240 41 Hop . | . . . . . Pick Up 44 | 8 31 4 1 . Fast Attach 10 | 6 3 1 . . Attach 4 | 1 1 1 . 1 Detach 2 | . 2 . . . Swap 11 | . 4 4 . 3 Drop 33 | . 24 8 1 . Fire 75 | 8 42 12 . 13 Melee . | . . . . . Ram . | . . . . . Kick . | . . . . . Crush . | . . . . . Escape Stasis . | . . . . . Rewire . | . . . . . Trap . | . . . . . Miscellaneous . | . . . . . Route ------- -11/Scrapyard -10/Materials (discovered 5 exits: [*Mat x3] / *Min x2) -10/Mines -10/Exiles -9/Mines History --------- Turn | Location | Event 38 | -11/Scrapyard | Discovered new exit (range 15) 236 | -11/Scrapyard | Entered Materials 313 | -10/Materials | Build established: Mutant 563 | -10/Materials | Identified exit to Mines 741 | -10/Materials | Discovered new exit (range 4) 1305 | -10/Materials | Discovered new exit (range 4) 1538 | -10/Materials | Discovered new exit (range 15) 1621 | -10/Materials | Entered Mines 1626 | -10/Mines | Learned Materials emergency access door positions 1682 | -10/Mines | Core integrity fell below 50% 1772 | -10/Mines | Met a Derelict shopkeep closing up shop 2073 | -10/Mines | Deemed a non-threat by the Exiles lab entrance 2073 | -10/Mines | Discovered new exit (range 5) 2096 | -10/Mines | Entered Exiles 2125 | -10/Exiles | Met 8R-AWN 2145 | -10/Exiles | Met EX-HEX 2175 | -10/Exiles | Met EX-BIN 2191 | -10/Exiles | Aligned with FarCom system 2192 | -10/Exiles | Given EX-Vault access code 2218 | -10/Exiles | Opened EX-Vault 2225 | -10/Exiles | Found 0b10 Alert Chip 2247 | -10/Exiles | Warned to stay clear of 0b10 Research branches 2283 | -10/Exiles | Met EX-DEC 2361 | -10/Exiles | Discovered new exit (range 12) 2374 | -10/Exiles | Left Exiles lab with 0b10 Alert Chip 2374 | -10/Exiles | Entered Mines 2448 | -9/Mines | Core integrity fell below 20% 2468 | -9/Mines | Destroyed by G-34 Mercenary with Small Laser Last Messages --------------- GOAL=ESCAPE 02374_ Receiving FarCom transmissions... 02375_ K-01 Serf collects debris. 02386_ A pair of derelicts emerge from the shadows: "We're, um, lost. You wouldn't happen to know the way out of here, would you?" 02440_ R-06 Scavenger collects Imp. Aluminum Leg. 02442_ Destroyed Terrain Scanner. 02442_ G-34 Mercenary destroyed. 02444_ R-06 Scavenger collects Mak. Power Source. 02446_ U-05 Engineer destroyed. 02446_ U-05 Engineer lays Concrete. 02455_ K-01 Serf collects debris. 02457_ Critical hit (Burn: +37). 02458_ K-01 Serf collects debris. 02461_ Com. Wheel destroyed. 02462_ K-01 Serf collects debris. 02466_ G-47 Trooper IFF system glitched. 02466_ K-01 Serf destroyed. 02467_ G-47 Trooper destroyed. 02467_ K-01 Serf collects debris. Map ----- +----------------------------------------------------+ | ????????????????????????????????????????? | | ????????????????????????????????????????? | | ????????????????????????????????????????? | | ????????????????????????????????????????? | | ????????????????????????????????????????? | | ????????????????????????????????????????? | | ????????????????????????????????????????? | | ????????????????????????????????????????? | | ????????????????????????????????????????? | | ????????????????????????????????????????? | | ????????????????????????????????????????? | | ????????????????????????????????????????? | | ????????????????????????????????????????? | | ????????????????????????????????????????? | | ????????????????????????????????????????? | | ????????????????????????#??? ???????????? | | ??????????####????????? #?? ??????????? | | ???######## ##???????# ## #??????????? | | ??## #?????## = "#???????????? | | ??# ##### % % "%#???????????? | | ?## #### = = #???????????? | | ?# ##??## = $ | #???????????? | | ?# #????#### ## = t%#????????????? | | ?# #???????# #? r g%k*!#????????????? | | ?# ##??????#g##[ = #????????????? | | ?## #####??# @%* #????????????? | | ??## ##?##### #????????????? | | ???## #???????? ##????????????? | | ????## ##????????? ##?????????????? | | ?????## ######??????#??????????????? | | ??????## #??????###????????????? | | ???????## ### #????? ?????????????? | | ????????# ### #???? #??????????????? | | ????????## ## ##### ###????????????? | | ?????????## #????????????? | | ??????????## ##### #### #????????????? | | ???????????# #???# #?????????????????? | | ???????????## ##???# #?????????????????? | | ?????????############ ####??????????????? | | ?????????# #??????????????? | | ?????????# #??????????????? | | ?????????# #??????????????? | | ?????????# #??????????????? | | ?????????####### #########??????????????? | | ???????????????# ???????????????????????? | | ???????????????#????????????????????????? | | ????????????????????????????????????????? | | ????????????????????????????????????????? | | ????????????????????????????????????????? | | ????????????????????????????????????????? | +----------------------------------------------------+ Best States ------------- Heat Dissipation 25 Energy Generation 14 Energy Capacity 275 Matter Stores 300 Matter Capacity 300 Sight Range 16 Terrain Scan Density 10 Armor Coverage 225 Evasion (%) 40 Recoil Reduction 2 Item Schematics ----------------- None Robot Schematics ------------------ None Fabricated ------------ Nothing Alien Tech Used ----------------- None Achievements -------------- None Challenges ------------ None Game ------ Seed ArmageddonMetafiberSheargun Manual? 0 Play Time 00:17:56 Cumulative 68.3 hours Start 2022.09.14 @ 20:56:40 End 2022.09.14 @ 21:14:19 Sessions 1 Manual Loads 0 Difficulty Rogue Special Mode None Game No. 56 Rogue 56 Adventurer 0 Explorer 0 Win Type - Total 2 Types 2/0/0/0/0/0/0/0/0 Lore% 57 Gallery% 55 Achievement% 50 Wizard Run 0 Options --------- ASCII 0 Keyboard 1 Movement Vi Keybinds 0 Fullscreen 2 Font 24/Proggy Map View 76x50 Tactical HUD 1 Map Filters NONE Filters NONE Steam 1 RUN: 0d7c65de-2d52-4517-b3b1-d00f273d6b5c